fUST/lending_fUST_20240408
["ID","MTS","AMOUNT","RATE_DAILY","PERIOD"]
[321895917,1712590244251,-500.0,0.00064383,120]
[321895918,1712590244261,-610.45,0.00064383,120]
[321895919,1712590244271,-500.0,0.00064383,120]
[321895920,1712590244281,-500.0,0.00064383,120]
[321895921,1712590244296,-500.0,0.00064383,120]
[321895922,1712590244306,-1042.77,0.00064383,120]
[321895923,1712590244317,-2099.67,0.00064383,90]
[321895924,1712590244327,-500.0,0.00064383,120]
[321895925,1712590244340,-535.15819274,0.00064383,120]
[321895926,1712590244351,-500.0,0.00064383,120]
[321895927,1712590244361,-1102.74,0.00064383,120]
[321895928,1712590244372,-500.0,0.00064383,21]
[321895929,1712590244382,-636.69,0.00064383,120]
[321895930,1712590244392,-500.0,0.00064383,120]
[321895931,1712590244403,-4449.39,0.00064383,120]
[321895932,1712590244413,-500.0,0.00064383,120]
[321895934,1712590244423,-500.0,0.00064383,120]
[321895935,1712590244432,-897.27,0.00064383,120]
[321895936,1712590244441,-807.25,0.00064383,120]
[321895937,1712590244450,-500.0,0.00064383,120]
[321895938,1712590244459,-856.42,0.00064383,120]
[321895939,1712590244468,-500.0,0.00064383,120]
[321895940,1712590244477,-500.0,0.00064383,120]
[321895942,1712590244487,-500.0,0.00064383,120]
[321895944,1712590244497,-500.0,0.00064383,120]
[321895945,1712590244505,-1631.13,0.00064383,120]
[321895946,1712590244514,-500.0,0.00064383,120]
[321895947,1712590244523,-812.95,0.00064383,120]
[321895948,1712590244533,-670.7,0.00064383,120]
[321895949,1712590244544,-1900.0,0.00064383,120]
[321895951,1712590244554,-500.0,0.00064383,120]
[321895952,1712590244563,-3422.12,0.00064383,120]
[321895953,1712590244572,-402.0,0.00064383,120]
[321895955,1712590244582,-52721.59431062,0.000649,120]
[321895956,1712590244591,-500.0,0.00065205,120]
[321895957,1712590244599,-500.0,0.00065205,2]
[321895958,1712590244608,-500.0,0.00065205,120]
[321895959,1712590244618,-500.0,0.00065205,120]
[321895960,1712590244628,-500.0,0.00065205,120]
[321895961,1712590244637,-748.58,0.00065205,120]
[321895962,1712590244646,-500.0,0.00065205,120]
[321895963,1712590244655,-500.0,0.00065205,120]
[321895964,1712590244665,-500.0,0.00065205,120]
[321895965,1712590244674,-500.0,0.00065205,120]
[321895966,1712590244683,-500.0,0.00065205,120]
[321895967,1712590244692,-500.0,0.00065205,120]
[321895968,1712590244701,-500.0,0.00065205,120]
[321895969,1712590244710,-500.0,0.00065205,120]
[321895970,1712590244719,-500.0,0.00065205,120]
[321895971,1712590244728,-359.05087139,0.00065205,120]
[321895972,1712590244737,-604.39,0.00065205,120]
[321895973,1712590244747,-500.0,0.00065205,120]
[321895974,1712590244756,-212.56,0.00065205,120]
[321895975,1712590244766,-500.0,0.00065205,120]
[321895976,1712590244775,-500.0,0.00065205,120]
[321895977,1712590244786,-500.0,0.00065205,120]
[321895978,1712590244794,-500.0,0.00065205,120]
[321895979,1712590244804,-747.31,0.00065205,120]
[321895980,1712590244813,-520.01,0.00065205,120]
[321895981,1712590244822,-500.0,0.00065205,120]
[321895982,1712590244831,-500.0,0.00065205,120]
[321895983,1712590244840,-500.0,0.00065205,120]
[321895984,1712590244849,-610.45,0.00065205,120]
[321895985,1712590244858,-500.0,0.00065205,120]
[321895986,1712590244867,-500.0,0.00065205,120]
[321895987,1712590244876,-500.0,0.00065205,120]
[321895988,1712590244885,-1042.77,0.00065205,120]
[321895989,1712590244895,-2099.67,0.00065205,90]
[321895990,1712590244904,-500.0,0.00065205,120]
[321895991,1712590244913,-500.0,0.00065205,120]
[321895992,1712590244923,-1102.74,0.00065205,120]
[321895993,1712590244934,-500.0,0.00065205,21]
[321895994,1712590244943,-500.0,0.00065205,120]
[321895995,1712590244952,-4449.39,0.00065205,120]
[321895996,1712590244961,-500.0,0.00065205,120]
[321895997,1712590244971,-500.0,0.00065205,120]
[321895998,1712590244981,-897.27,0.00065205,120]
[321895999,1712590244990,-807.25,0.00065205,120]
[321896000,1712590244999,-500.0,0.00065205,120]
[321896001,1712590245009,-856.42,0.00065205,120]
[321896002,1712590245018,-500.0,0.00065205,120]
[321896003,1712590245027,-500.0,0.00065205,120]
[321896004,1712590245038,-500.0,0.00065205,120]
[321896005,1712590245047,-500.0,0.00065205,120]
[321896006,1712590245060,-1631.13,0.00065205,120]
[321896007,1712590245069,-500.0,0.00065205,120]
[321896008,1712590245078,-812.95,0.00065205,120]
[321896009,1712590245090,-670.7,0.00065205,120]
[321896010,1712590245099,-1900.0,0.00065205,120]
[321896011,1712590245108,-500.0,0.00065205,120]
[321896012,1712590245118,-3422.12,0.00065205,120]
[321896013,1712590245127,-500.0,0.00065753,120]
[321896014,1712590245136,-500.0,0.00065753,120]
[321896015,1712590245144,-500.0,0.00065753,120]
[321896016,1712590245154,-319.73,0.00065753,120]
[321896017,1712590245162,-500.0,0.00066027,120]
[321896018,1712590245171,-500.0,0.00066027,2]
[321896019,1712590245181,-500.0,0.00066027,120]
[321896020,1712590245190,-500.0,0.00066027,120]
[321896021,1712590245199,-500.0,0.00066027,120]
[321896022,1712590245207,-748.58,0.00066027,120]
[321896023,1712590245216,-500.0,0.00066027,120]
[321896024,1712590245225,-500.0,0.00066027,120]
[321896025,1712590245234,-500.0,0.00066027,120]
[321896026,1712590245243,-500.0,0.00066027,120]
[321896027,1712590245252,-500.0,0.00066027,120]
[321896028,1712590245261,-500.0,0.00066027,120]
[321896029,1712590245270,-500.0,0.00066027,120]
[321896030,1712590245279,-500.0,0.00066027,120]
[321896031,1712590245290,-500.0,0.00066027,120]
[321896032,1712590245298,-604.39,0.00066027,120]
[321896033,1712590245307,-500.0,0.00066027,120]
[321896034,1712590245316,-500.0,0.00066027,120]
[321896035,1712590245324,-500.0,0.00066027,120]
[321896036,1712590245333,-500.0,0.00066027,120]
[321896037,1712590245342,-747.31,0.00066027,120]
[321896038,1712590245351,-520.01,0.00066027,120]
[321896039,1712590245361,-462.58,0.00066027,120]
[321896040,1712590245370,-500.0,0.00066027,120]
[321896041,1712590245379,-500.0,0.00066027,120]
[321896042,1712590245387,-610.45,0.00066027,120]
[321896043,1712590245397,-500.0,0.00066027,120]
[321896044,1712590245406,-500.0,0.00066027,120]
[321896045,1712590245416,-500.0,0.00066027,120]
[321896046,1712590245424,-1042.77,0.00066027,120]
[321896047,1712590245433,-2099.67,0.00066027,90]
[321896048,1712590245442,-500.0,0.00066027,120]
[321896049,1712590245451,-500.0,0.00066027,120]
[321896050,1712590245460,-1102.74,0.00066027,120]
[321896051,1712590245469,-500.0,0.00066027,21]
[321896052,1712590245478,-500.0,0.00066027,120]
[321896053,1712590245486,-4449.39,0.00066027,120]
[321896054,1712590245495,-500.0,0.00066027,120]
[321896055,1712590245504,-500.0,0.00066027,120]
[321896056,1712590245513,-897.27,0.00066027,120]
[321896057,1712590245522,-807.25,0.00066027,120]
[321896058,1712590245531,-500.0,0.00066027,120]
[321896059,1712590245542,-360.3383931,0.00066027,120]
[321896060,1712590245703,-705.75,0.00060273,120]
[321896061,1712590245712,-541.5278105,0.00061095,120]
[321896062,1712590245980,490.762742,0.00048563,120]
[321896081,1712590247369,-490.762742,0.00056657,120]
[321896082,1712590247379,-164.2221895,0.00061095,120]
[321896083,1712590247389,-705.75,0.00061917,120]
[321896084,1712590247398,-153.0,0.00062,2]
[321896085,1712590247408,-202.7046065,0.00062,60]
[321896086,1712590247417,-283.55082218,0.00062739,120]
[321896092,1712590247983,-153.0,0.00062,2]
[321896093,1712590247992,-422.19917782,0.00062739,120]
[321896094,1712590248002,-705.75,0.00063561,120]
[321896095,1712590248011,-172.0,0.00064383,2]
[321896096,1712590248020,-705.75,0.00064383,120]
[321896097,1712590248030,-490.762742,0.00064751,120]
[321896098,1712590248041,-705.75,0.00065205,120]
[321896099,1712590248050,-496.0816069,0.00066027,120]
[321896100,1712590248061,-500.0,0.00066027,120]
[321896101,1712590248071,-500.0,0.00066027,120]
[321896102,1712590248080,-500.0,0.00066027,120]
[321896103,1712590248097,-500.0,0.00066027,120]
[321896104,1712590248107,-1631.13,0.00066027,120]
[321896105,1712590248117,-500.0,0.00066027,120]
[321896106,1712590248125,-812.95,0.00066027,120]
[321896107,1712590248135,-670.7,0.00066027,120]
[321896108,1712590248145,-1900.0,0.00066027,120]
[321896109,1712590248155,-3355.63263581,0.00066027,120]
[321896113,1712590251750,500.0,0.00047151,120]
[321896114,1712590251787,500.0,0.00047151,120]
[321896115,1712590251845,500.0,0.00047151,120]
[321896116,1712590251903,500.0,0.00047151,120]
[321896117,1712590251952,500.0,0.00047151,120]
[321896118,1712590252005,538.72826543,0.00047151,120]
[321896119,1712590252128,420.80886636,0.00047151,31]
[321896120,1712590252153,573.75737925,0.00047151,120]
[321896121,1712590252178,500.0,0.00047151,120]
[321896122,1712590252220,632.55796712,0.00047151,120]
[321896123,1712590252338,500.0,0.00047151,120]
[321896124,1712590252552,500.0,0.00047151,120]
[321896125,1712590252606,401.94654011,0.00047151,120]
[321896126,1712590266236,240.68756827,0.00047669,4]
[321896127,1712590268044,427.26,0.00043512,30]
[321896128,1712590268118,165.166591,0.00027397,2]
[321896129,1712590268372,165.166591,0.0003653,2]
[321896130,1712590268616,165.166591,0.00045662,2]
[321896131,1712590268979,207.062782,0.00045884,30]
[321896132,1712590269298,207.062782,0.00046458,30]
[321896133,1712590269641,207.062782,0.00047031,30]
[321896134,1712590269968,207.062782,0.00047605,30]
[321896135,1712590270287,207.062782,0.00048179,30]
[321896136,1712590270337,7130.99878472,0.0004947,2]
[321896140,1712590319085,156.34222761,0.00042328,4]
[321896144,1712590350615,176.2667685,0.00042968,30]
[321896145,1712590357756,2167.39100389,0.00025,30]
[321896146,1712590357781,2500.0,0.00025,30]
[321896147,1712590357809,2500.0,0.00025,30]
[321896148,1712590357834,2500.0,0.00025,30]
[321896149,1712590357879,11423.89037653,0.00025,30]
[321896150,1712590357926,18908.71861958,0.00025,30]
[321896155,1712590573276,220.72763319,0.00025,2]
[321896157,1712590979589,160.4037179,0.00025933,2]
[321896159,1712591003679,213.7278386,0.0002582,2]
[321896160,1712591144145,-276.96705132,0.00026573,2]
[321896161,1712591144176,-562.64730962,0.00026573,2]
[321896162,1712591144196,-879.80482733,0.00026574,2]
[321896166,1712591195512,522.6209353,0.000229,2]
[321896167,1712591244088,-461.32035809,0.00026473,2]
[321896168,1712591253252,-176.57313383,0.00026473,2]
[321896169,1712591253274,-238.89264013,0.00026474,2]
[321896170,1712591253299,-158.46962415,0.00026476,2]
[321896171,1712591253321,-886.58989039,0.00026476,2]
[321896172,1712591253345,-113.79194169,0.00026476,2]
[321896173,1712591257799,250.0,0.0002554,2]
[321896174,1712591269411,364.245022,0.00025479,2]
[321896175,1712591290796,190.27874603,0.0002554,2]
[321896176,1712591309409,4200.282583,0.00025478,2]
[321896177,1712591346113,-154.86062544,0.00026206,2]
[321896178,1712591346133,-886.58989039,0.00026206,2]
[321896179,1712591346152,-188.04976556,0.00026207,2]
[321896180,1712591346171,-300.0,0.00026207,2]
[321896181,1712591346199,-637.89349192,0.00026208,2]
[321896182,1712591346219,-158.46962415,0.00026208,2]
[321896183,1712591346238,-1086.90254792,0.00026208,2]
[321896184,1712591346259,-3734.82468717,0.00026208,2]
[321896185,1712591346279,-558.32933043,0.00026208,2]
[321896186,1712591346300,-545.90247133,0.00026209,2]
[321896187,1712591346320,-19131.19494376,0.0002621,2]
[321896188,1712591346344,-196.09213623,0.00026211,2]
[321896189,1712591346365,-196.09213623,0.00026211,2]
[321896190,1712591346388,-263.37349984,0.00026211,2]
[321896191,1712591346408,-196.09213623,0.00026211,2]
[321896192,1712591346429,-196.09213623,0.00026211,2]
[321896193,1712591346448,-229.70664123,0.0002638,2]
[321896194,1712591346471,-32379.13102594,0.00026474,2]
[321896196,1712591354185,-924.63411097,0.00026205,2]
[321896197,1712591354205,-300.0,0.00026207,2]
[321896198,1712591354226,-15207.43116345,0.00026474,2]
[321896199,1712591354245,-386.54851719,0.00026478,2]
[321896200,1712591354265,-245.89601968,0.00026478,2]
[321896201,1712591354285,-489.76739013,0.00026478,2]
[321896202,1712591354304,-1028.78868364,0.0002648,2]
[321896203,1712591354322,-155.21795967,0.00026569,2]
[321896204,1712591354344,-414.18838431,0.00026574,2]
[321896205,1712591354364,-610.00676164,0.00026574,2]
[321896206,1712591354393,-309.6903097,0.00026579,2]
[321896207,1712591354415,-217.4057204,0.000266,2]
[321896208,1712591354436,-154.49423057,0.00027286,2]
[321896209,1712591354456,-578.63673527,0.00027378,2]
[321896210,1712591354477,-164.3942339,0.00027397,2]
[321896211,1712591354496,-164.912944,0.00027397,2]
[321896212,1712591354515,-522.6209353,0.000279,2]
[321896213,1712591354535,-420.0,0.00028356,2]
[321896214,1712591354555,-420.0,0.00028828,2]
[321896215,1712591354575,-154.49423052,0.00029694,2]
[321896216,1712591354595,-286.0,0.0003,2]
[321896217,1712591354614,-587.0,0.00030681,2]
[321896218,1712591354634,-587.0,0.0003171,2]
[321896219,1712591354653,-238.89264009,0.00032081,2]
[321896220,1712591354673,-154.49423052,0.00032102,2]
[321896221,1712591354693,-522.6209353,0.000329,2]
[321896222,1712591354712,-172.6030358,0.00033495,2]
[321896223,1712591354732,-154.49423052,0.00034509,2]
[321896224,1712591354751,-286.0,0.00034803,2]
[321896225,1712591354771,-823.0,0.00034882,2]
[321896226,1712591354790,-668.64742128,0.00035,4]
[321896227,1712591354810,-154.49423052,0.00036917,2]
[321896228,1712591354909,-229.70664122,0.0003764,2]
[321896229,1712591354930,-238.89264009,0.00037687,2]
[321896230,1712591354955,-364.245022,0.00038218,2]
[321896231,1712591354975,-1152.0,0.0003837,3]
[321896232,1712591354995,-154.49423052,0.00039325,2]
[321896233,1712591355015,-181.7866,0.00039609,2]
[321896234,1712591355035,-3564.69993173,0.0004,4]
[321896235,1712591355055,-2674.52475255,0.00041,30]
[321896236,1712591357096,-823.0,0.00033196,2]
[321896237,1712591357117,-23608.35178488,0.00034911,2]
[321896238,1712591357151,-1291.64821512,0.00034911,2]
[321896239,1712591357172,-218.0,0.00035918,2]
[321896240,1712591357195,-163.58758,0.00036986,120]
[321896241,1712591357216,-176.98962745,0.00041,30]
[321896242,1712591357236,-166.666666,0.00041096,2]
[321896243,1712591357256,-1232.5830177,0.00041096,7]
[321896244,1712591357279,-500.0,0.00041096,31]
[321896245,1712591357301,-573.90869793,0.00041096,31]
[321896246,1712591357321,-154.49423052,0.00041733,2]
[321896247,1712591357345,-166.666666,0.00042058,2]
[321896248,1712591357366,-1613.0,0.00042207,3]
[321896249,1712591357389,-166.666666,0.00043019,2]
[321896250,1712591357410,-238.89264009,0.00043294,2]
[321896251,1712591357430,-166.666666,0.00043981,2]
[321896252,1712591357453,-154.49423052,0.00044141,2]
[321896253,1712591357477,-166.666666,0.00044942,2]
[321896254,1712591357498,-286.0,0.00045,2]
[321896255,1712591357519,-6292.55431886,0.00045,120]
[321896256,1712591361090,-12312.74652879,0.00026208,2]
[321896257,1712591364188,-4276.51349334,0.00026208,2]
[321896258,1712591364209,-438.17683716,0.00033194,4]
[321896259,1712591364228,-5017.99862,0.00033195,4]
[321896260,1712591364249,-375.80646628,0.00033195,4]
[321896261,1712591364268,-2223.73372715,0.00045,120]
[321896262,1712591364288,-979.49096649,0.00045486,4]
[321896263,1712591364308,-166.666666,0.00045904,2]
[321896264,1712591364327,-1668.94825016,0.00045945,4]
[321896265,1712591364348,-155.13937456,0.00045945,4]
[321896266,1712591364371,-649.47104033,0.00045946,2]
[321896267,1712591364395,-3938.58002853,0.00045947,2]
[321896463,1712591438632,-10605.4759799,0.00045485,4]
[321896465,1712591438641,-928.06769076,0.00045486,4]
[321896467,1712591438650,-301.10116887,0.00045943,4]
[321896469,1712591438660,-550.0,0.00045944,3]
[321896470,1712591438669,-764.16848146,0.00045944,2]
[321896472,1712591438678,-1209.48384113,0.00045945,4]
[321896474,1712591438688,-8516.28804601,0.00045945,120]
[321896476,1712591438698,-209.90031006,0.00045945,120]
[321896478,1712591438707,-460.24658482,0.00045945,120]
[321896480,1712591438717,-513.40832982,0.00045946,4]
[321896482,1712591438726,-60618.06891659,0.00045946,4]
[321896484,1712591438735,-321.53165145,0.00045946,4]
[321896486,1712591438745,-219.98814321,0.00045946,4]
[321896487,1712591438754,-381.45409017,0.00046107,4]
[321896488,1712591438764,-163.58758,0.00046233,120]
[321896490,1712591438773,-154.49423052,0.00046548,2]
[321896492,1712591438783,-1487.91526037,0.00046995,4]
[321896494,1712591438793,-1871.6309523,0.00047046,4]
[321896496,1712591438801,-272.38437865,0.00047048,4]
[321896498,1712591438811,-312.00577526,0.00047048,4]
[321896500,1712591438820,-200.24862657,0.00047052,2]
[321896502,1712591438829,-295.11593151,0.00047053,4]
[321896504,1712591438838,-154.38727671,0.00047689,30]
[321896505,1712591438847,-1290.58,0.00048244,7]
[321896507,1712591438856,-238.89264009,0.000489,2]
[321896509,1712591438866,-154.49423052,0.00048956,2]
[321896511,1712591438875,-2000.0,0.00049,68]
[321896512,1712591438885,-3369.67509796,0.00049,120]
[321896514,1712591438894,-2897.79348,0.0004901,68]
[321896516,1712591438903,-164.912944,0.00049315,2]
[321896518,1712591438912,-1165.75148064,0.0004937,2]
[321896520,1712591438921,-156.56610872,0.00049469,4]
[321896521,1712591438930,-3789.38632484,0.00049469,4]
[321896523,1712591438939,-34260.52468977,0.0004947,2]
[321896525,1712591438948,-954.10944275,0.0005,60]
[321896526,1712591438957,-309.70233039,0.0005,2]
[321896527,1712591438967,-2415.55737115,0.0005,2]
[321896528,1712591438976,-614.628412,0.0005,14]
[321896529,1712591438986,-500.0,0.0005,15]
[321896530,1712591438996,-770.0,0.00050539,10]
[321896531,1712591439006,-2126.35779954,0.00050949,15]
[321896532,1712591439015,-3465.90127341,0.00051,4]
[321896533,1712591439024,-154.87609912,0.00051,2]
[321896534,1712591439033,-765.5500005,0.00051,120]
[321896535,1712591439043,-690.43254692,0.00051,4]
[321896536,1712591439052,-301.16228964,0.00051,120]
[321896537,1712591439062,-154.87609912,0.00051,4]
[321896538,1712591439071,-154.49423052,0.00051364,2]
[321896539,1712591439080,-154.49423052,0.00053772,2]
[321896540,1712591439089,-165.166591,0.00054794,2]
[321896541,1712591439099,-156.00608791,0.00054903,60]
[321896542,1712591439109,-154.38727671,0.00055173,120]
[321896543,1712591439118,-163.58758,0.00055479,120]
[321896544,1712591439127,-1077.0,0.00055592,10]
[321896545,1712591439136,-319.1958443,0.00055624,2]
[321896546,1712591439145,-153.0,0.00055761,60]
[321896547,1712591439155,-153.0,0.00055761,30]
[321896548,1712591439164,-153.0,0.00055761,60]
[321896549,1712591439173,-153.0,0.00055761,60]
[321896550,1712591439182,-153.0,0.00055761,60]
[321896551,1712591439191,-153.0,0.00055761,60]
[321896552,1712591439200,-153.0,0.00055761,30]
[321896553,1712591439209,-153.0,0.00055761,60]
[321896554,1712591439218,-153.0,0.00055761,60]
[321896555,1712591439227,-153.0,0.00055761,60]
[321896556,1712591439236,-153.0,0.00055761,60]
[321896557,1712591439247,-153.0,0.00055761,60]
[321896558,1712591439257,-153.0,0.00055761,30]
[321896559,1712591439267,-153.0,0.00055761,60]
[321896560,1712591439276,-153.0,0.00055761,60]
[321896561,1712591439285,-153.0,0.00055761,60]
[321896562,1712591439295,-153.0,0.00055761,60]
[321896563,1712591439304,-153.0,0.00055761,60]
[321896564,1712591439313,-153.0,0.00055761,60]
[321896565,1712591439322,-153.0,0.00055761,30]
[321896566,1712591439331,-153.0,0.00055761,60]
[321896567,1712591439341,-153.0,0.00055761,60]
[321896568,1712591439349,-153.0,0.00055761,60]
[321896569,1712591439359,-153.0,0.00055761,60]
[321896570,1712591439369,-154.7674614,0.00055761,30]
[321896571,1712591439378,-153.0,0.00055761,60]
[321896572,1712591439389,-202.7046065,0.00055761,60]
[321896573,1712591439401,-153.0,0.00055761,60]
[321896574,1712591439411,-153.0,0.00055761,60]
[321896575,1712591439419,-153.0,0.00056035,60]
[321896576,1712591439430,-153.0,0.00056035,60]
[321896577,1712591439439,-153.0,0.00056035,60]
[321896578,1712591439449,-154.49423052,0.00056179,2]
[321896579,1712591439458,-153.0,0.00056583,60]
[321896580,1712591439468,-153.0,0.00056583,2]
[321896581,1712591439478,-153.0,0.00056583,2]
[321896582,1712591439488,-153.0,0.00056583,2]
[321896583,1712591439501,-153.0,0.00056583,2]
[321896584,1712591439510,-153.0,0.00056583,2]
[321896585,1712591439519,-153.0,0.00056583,2]
[321896586,1712591439529,-153.0,0.00056583,2]
[321896587,1712591439537,-153.0,0.00056583,2]
[321896588,1712591439546,-153.0,0.00056583,2]
[321896589,1712591439556,-153.0,0.00056583,2]
[321896590,1712591439565,-153.0,0.00056583,2]
[321896591,1712591439576,-153.0,0.00056583,2]
[321896592,1712591439585,-153.0,0.00056583,2]
[321896593,1712591439595,-153.0,0.00056583,2]
[321896594,1712591439605,-214.5726891,0.00056583,2]
[321896595,1712591439614,-154.49423052,0.00058587,2]
[321896596,1712591439624,-176.26676851,0.00059384,120]
[321896597,1712591439633,-202.7046065,0.00059578,60]
[321896598,1712591439642,-202.7046065,0.00059578,60]
[321896599,1712591439651,-152.51927142,0.0005987,120]
[321896600,1712591439660,-202.7046065,0.00060178,60]
[321896601,1712591439670,-202.7046065,0.00060178,60]
[321896602,1712591439680,-153.0,0.00060178,2]
[321896603,1712591439689,-153.0,0.00060178,2]
[321896604,1712591439698,-153.0,0.00060178,2]
[321896605,1712591439707,-153.0,0.00060178,2]
[321896606,1712591439716,-58517.66117538,0.00060272,61]
[321896607,1712591439726,-16740.48325541,0.00060272,7]
[321896608,1712591439735,-500.0,0.00060273,120]
[321896609,1712591439747,-500.0,0.00060273,120]
[321896610,1712591439756,-500.0,0.00060273,120]
[321896611,1712591439765,-500.0,0.00060273,120]
[321896612,1712591439775,-252.93676011,0.00060273,120]
[321896613,1712591439785,-500.0,0.00060273,120]
[321896614,1712591439794,-500.0,0.00060273,120]
[321896615,1712591439803,-500.0,0.00060273,120]
[321896616,1712591439812,-500.0,0.00060273,120]
[321896617,1712591439892,-500.0,0.00060273,120]
[321896618,1712591439901,-500.0,0.00060273,120]
[321896619,1712591439911,-500.0,0.00060273,120]
[321896620,1712591439920,-500.0,0.00060273,120]
[321896621,1712591439929,-500.0,0.00060273,120]
[321896622,1712591439938,-500.0,0.00060273,120]
[321896623,1712591439947,-500.0,0.00060273,120]
[321896624,1712591439956,-500.0,0.00060273,120]
[321896625,1712591439965,-623.81,0.00060273,2]
[321896626,1712591439974,-154.98480861,0.00060273,120]
[321896627,1712591439983,-500.0,0.00060273,120]
[321896628,1712591439992,-500.0,0.00060273,120]
[321896629,1712591440001,-500.0,0.00060273,120]
[321896630,1712591440011,-500.0,0.00060273,120]
[321896631,1712591440020,-500.0,0.00060273,120]
[321896632,1712591440029,-500.0,0.00060273,120]
[321896633,1712591440038,-503.117304,0.00060273,120]
[321896634,1712591440047,-189.93642984,0.00060273,120]
[321896635,1712591440056,-249.7579908,0.00060273,120]
[321896636,1712591440065,-500.0,0.00060273,120]
[321896637,1712591440074,-500.0,0.00060273,120]
[321896638,1712591440083,-500.0,0.00060273,120]
[321896639,1712591440093,-500.0,0.00060273,120]
[321896641,1712591440102,-500.0,0.00060273,120]
[321896643,1712591440111,-248.89395911,0.00060273,120]
[321896644,1712591440120,-500.0,0.00060273,120]
[321896646,1712591440130,-500.0,0.00060273,120]
[321896647,1712591440139,-500.0,0.00060273,120]
[321896648,1712591440149,-500.0,0.00060273,120]
[321896649,1712591440158,-408.39076323,0.00060273,120]
[321896650,1712591440167,-500.0,0.00060273,120]
[321896652,1712591440176,-507.99476397,0.00060273,120]
[321896653,1712591440186,-500.0,0.00060273,120]
[321896654,1712591440194,-481.63806874,0.00060273,120]
[321896655,1712591440204,-500.0,0.00060273,120]
[321896656,1712591440213,-500.0,0.00060273,120]
[321896657,1712591440222,-537.09,0.00060273,120]
[321896658,1712591440231,-500.0,0.00060273,120]
[321896660,1712591440242,-500.0,0.00060273,120]
[321896662,1712591440251,-500.0,0.00060273,120]
[321896664,1712591440260,-500.0,0.00060273,120]
[321896666,1712591440270,-500.0,0.00060273,120]
[321896668,1712591440280,-500.0,0.00060273,120]
[321896670,1712591440290,-500.0,0.00060273,120]
[321896672,1712591440299,-500.0,0.00060273,120]
[321896673,1712591440310,-500.0,0.00060273,120]
[321896674,1712591440319,-500.0,0.00060273,120]
[321896675,1712591440328,-500.0,0.00060273,120]
[321896676,1712591440337,-417.45037502,0.00060273,120]
[321896677,1712591440347,-500.0,0.00060273,120]
[321896678,1712591440360,-315.80696146,0.00060273,120]
[321896679,1712591440370,-699.28,0.00060273,120]
[321896680,1712591440379,-500.0,0.00060273,120]
[321896681,1712591440390,-392.65155777,0.00060273,120]
[321896682,1712591440402,-500.0,0.00060273,120]
[321896683,1712591440411,-500.0,0.00060273,120]
[321896684,1712591440420,-500.0,0.00060273,120]
[321896685,1712591440431,-500.0,0.00060273,120]
[321896686,1712591440440,-500.0,0.00060273,120]
[321896687,1712591440449,-394.42829853,0.00060273,120]
[321896688,1712591440459,-500.0,0.00060273,120]
[321896689,1712591440468,-500.0,0.00060273,120]
[321896690,1712591440477,-500.0,0.00060273,120]
[321896691,1712591440487,-755.9,0.00060273,120]
[321896692,1712591440496,-500.0,0.00060273,120]
[321896693,1712591440506,-500.0,0.00060273,120]
[321896694,1712591440515,-500.0,0.00060273,120]
[321896695,1712591440524,-516.45611841,0.00060273,120]
[321896696,1712591440534,-747.53,0.00060273,120]
[321896697,1712591440543,-500.0,0.00060273,120]